fUST/lending_fUST_20250819
["ID","MTS","AMOUNT","RATE_DAILY","PERIOD"]
[380163108,1755588639502,-480.0,0.00019178,2]
[380163110,1755588639511,-480.0,0.00019178,2]
[380163112,1755588639521,-480.0,0.00019178,2]
[380163114,1755588639530,-480.0,0.00019178,2]
[380163116,1755588639539,-480.0,0.00019178,2]
[380163118,1755588639548,-480.0,0.00019178,2]
[380163120,1755588639557,-480.0,0.00019178,2]
[380163122,1755588639567,-480.0,0.00019178,2]
[380163124,1755588639576,-1448.6,0.00019178,2]
[380163126,1755588639586,-481.24196959,0.00019178,2]
[380163128,1755588639597,-480.0,0.00019178,2]
[380163130,1755588639607,-480.0,0.00019178,2]
[380163132,1755588639616,-480.0,0.00019178,2]
[380163134,1755588639625,-480.0,0.00019178,2]
[380163136,1755588639634,-460.0,0.00019178,2]
[380163138,1755588639643,-480.0,0.00019178,2]
[380163140,1755588639652,-480.0,0.00019178,2]
[380163142,1755588639662,-467.98571353,0.00019178,2]
[380163144,1755588639671,-481.51820273,0.00019178,2]
[380163146,1755588639680,-480.0,0.00019178,2]
[380163148,1755588639689,-482.44467574,0.00019178,2]
[380163150,1755588639698,-480.0,0.00019178,2]
[380163152,1755588639707,-853.77,0.00019178,2]
[380163154,1755588639717,-480.0,0.00019178,2]
[380163155,1755588639726,-441.94573009,0.00019178,2]
[380163157,1755588639735,-448.67125177,0.00019178,2]
[380163159,1755588639744,-480.0,0.00019178,2]
[380163161,1755588639753,-480.0,0.00019178,2]
[380163163,1755588639763,-480.0,0.00019178,2]
[380163166,1755588639772,-480.0,0.00019178,2]
[380163168,1755588639790,-480.0,0.00019178,2]
[380163170,1755588639801,-480.0,0.00019178,2]
[380163171,1755588639814,-480.0,0.00019178,2]
[380163172,1755588639823,-480.0,0.00019178,2]
[380163173,1755588639832,-689.33,0.00019178,2]
[380163174,1755588639844,-500.0,0.00019178,2]
[380163175,1755588639854,-480.0,0.00019178,2]
[380163176,1755588639863,-500.0,0.00019178,2]
[380163178,1755588639872,-500.0,0.00019178,2]
[380163180,1755588639885,-500.0,0.00019178,2]
[380163182,1755588639895,-354.79452101,0.00019178,2]
[380163183,1755588639904,-480.0,0.00019178,2]
[380163184,1755588639913,-480.0,0.00019178,2]
[380163185,1755588639923,-480.0,0.00019178,2]
[380163186,1755588639932,-480.0,0.00019178,2]
[380163187,1755588639941,-1093.99,0.00019178,2]
[380163188,1755588639950,-480.0,0.00019178,2]
[380163189,1755588639959,-480.0,0.00019178,2]
[380163190,1755588639968,-500.0,0.00019178,2]
[380163191,1755588639978,-500.0,0.00019178,2]
[380163192,1755588639987,-603.59,0.00019178,2]
[380163193,1755588639997,-500.0,0.00019178,2]
[380163195,1755588640098,-500.0,0.00019178,2]
[380163196,1755588640107,-619.52,0.00019178,2]
[380163197,1755588640117,-500.0,0.00019178,2]
[380163198,1755588640126,-420.0,0.00019178,2]
[380163199,1755588640135,-161.79763711,0.00019178,2]
[380163201,1755588640145,-460.0,0.00019178,2]
[380163203,1755588640154,-480.0,0.00019178,2]
[380163205,1755588640164,-480.0,0.00019178,2]
[380163207,1755588640174,-480.0,0.00019178,2]
[380163208,1755588640183,-480.0,0.00019178,2]
[380163209,1755588640192,-480.0,0.00019178,2]
[380163210,1755588640202,-578.00794063,0.00019178,2]
[380163211,1755588640211,-481.66041453,0.00019178,2]
[380163212,1755588640220,-480.0,0.00019178,2]
[380163213,1755588640230,-480.0,0.00019178,2]
[380163214,1755588640239,-480.0,0.00019178,2]
[380163215,1755588640249,-480.0,0.00019178,2]
[380163216,1755588640259,-440.95951233,0.00019178,2]
[380163217,1755588640268,-480.0,0.00019178,2]
[380163218,1755588640278,-480.0,0.00019178,2]
[380163219,1755588640287,-1000.0,0.00019178,2]
[380163220,1755588640297,-480.0,0.00019178,2]
[380163221,1755588640306,-480.0,0.00019178,2]
[380163222,1755588640316,-480.0,0.00019178,2]
[380163223,1755588640326,-480.0,0.00019178,2]
[380163224,1755588640335,-400.0,0.00019178,2]
[380163225,1755588640346,-480.0,0.00019178,2]
[380163228,1755588640356,-157.54164704,0.00019178,2]
[380163230,1755588640366,-480.0,0.00019178,2]
[380163231,1755588640376,-483.20784292,0.00019178,2]
[380163232,1755588640386,-510.55,0.00019178,2]
[380163233,1755588640395,-460.0,0.00019178,2]
[380163234,1755588640404,-480.0,0.00019178,2]
[380163235,1755588640413,-480.0,0.00019178,2]
[380163236,1755588640422,-480.0,0.00019178,2]
[380163237,1755588640432,-480.0,0.00019178,2]
[380163238,1755588640441,-480.0,0.00019178,2]
[380163239,1755588640452,-480.0,0.00019178,2]
[380163240,1755588640461,-603.04155235,0.00019178,2]
[380163241,1755588640471,-480.0,0.00019178,2]
[380163242,1755588640480,-480.0,0.00019178,2]
[380163243,1755588640489,-480.0,0.00019178,2]
[380163244,1755588640498,-480.0,0.00019178,2]
[380163245,1755588640508,-271.26435825,0.00019178,2]
[380163246,1755588640517,-480.0,0.00019178,2]
[380163247,1755588640526,-480.0,0.00019178,2]
[380163248,1755588640535,-1616.59,0.00019178,2]
[380163249,1755588640545,-480.0,0.00019178,2]
[380163250,1755588640554,-480.0,0.00019178,2]
[380163251,1755588640563,-480.0,0.00019178,2]
[380163252,1755588640572,-480.0,0.00019178,2]
[380163253,1755588640581,-480.0,0.00019178,2]
[380163254,1755588640590,-682.62,0.00019178,2]
[380163255,1755588640601,-480.0,0.00019178,2]
[380163256,1755588640610,-480.0,0.00019178,2]
[380163257,1755588640619,-480.0,0.00019178,2]
[380163258,1755588640628,-480.0,0.00019178,2]
[380163259,1755588640637,-480.0,0.00019178,2]
[380163260,1755588640646,-480.0,0.00019178,2]
[380163261,1755588640656,-460.0,0.00019178,2]
[380163262,1755588640665,-480.0,0.00019178,2]
[380163263,1755588640675,-480.0,0.00019178,2]
[380163264,1755588640684,-823.44,0.00019178,2]
[380163265,1755588640693,-674.56,0.00019178,2]
[380163266,1755588640703,-420.66256802,0.00019178,2]
[380163267,1755588640712,-480.0,0.00019178,2]
[380163268,1755588640722,-481.85507194,0.00019178,2]
[380163269,1755588640731,-480.0,0.00019178,2]
[380163270,1755588640741,-480.0,0.00019178,2]
[380163271,1755588640750,-863.2,0.00019178,2]
[380163272,1755588640759,-480.0,0.00019178,2]
[380163273,1755588640769,-480.0,0.00019178,2]
[380163274,1755588640779,-500.0,0.00019178,2]
[380163275,1755588640789,-500.0,0.00019178,2]
[380163276,1755588640798,-367.87750067,0.00019178,2]
[380163277,1755588640811,-441.44733662,0.00019178,2]
[380163278,1755588640820,-480.0,0.00019178,2]
[380163279,1755588640830,-480.0,0.00019178,2]
[380163280,1755588640839,-261.31949521,0.00019178,2]
[380163281,1755588640852,-480.0,0.00019178,2]
[380163283,1755588640862,-480.0,0.00019178,2]
[380163284,1755588640871,-536.21400313,0.00019178,2]
[380163285,1755588640882,-480.0,0.00019178,2]
[380163286,1755588640892,-480.0,0.00019178,2]
[380163287,1755588640903,-480.0,0.00019178,2]
[380163288,1755588640912,-588.17,0.00019178,2]
[380163289,1755588640921,-480.0,0.00019178,2]
[380163290,1755588640933,-1827.22,0.00019178,2]
[380163291,1755588640942,-360.0,0.00019178,2]
[380163292,1755588640952,-480.0,0.00019178,2]
[380163293,1755588640962,-480.0,0.00019178,2]
[380163294,1755588640972,-480.0,0.00019178,2]
[380163295,1755588640981,-480.0,0.00019178,2]
[380163296,1755588640991,-480.0,0.00019178,2]
[380163297,1755588641000,-480.0,0.00019178,2]
[380163298,1755588641010,-480.0,0.00019178,2]
[380163299,1755588641019,-480.0,0.00019178,2]
[380163300,1755588641029,-480.0,0.00019178,2]
[380163301,1755588641039,-480.0,0.00019178,2]
[380163302,1755588641048,-517.02,0.00019178,2]
[380163303,1755588641057,-577.28,0.00019178,2]
[380163304,1755588641066,-480.0,0.00019178,2]
[380163305,1755588641076,-480.0,0.00019178,2]
[380163306,1755588641085,-480.0,0.00019178,2]
[380163307,1755588641096,-713.86,0.00019178,2]
[380163308,1755588641106,-480.0,0.00019178,2]
[380163309,1755588641115,-440.0,0.00019178,2]
[380163310,1755588641124,-480.0,0.00019178,2]
[380163311,1755588641134,-480.0,0.00019178,2]
[380163312,1755588641143,-460.0,0.00019178,2]
[380163313,1755588641153,-480.0,0.00019178,2]
[380163314,1755588641162,-480.0,0.00019178,2]
[380163315,1755588641172,-480.0,0.00019178,2]
[380163316,1755588641181,-520.0,0.00019178,2]
[380163317,1755588641190,-437.35334718,0.00019178,2]
[380163318,1755588641199,-480.0,0.00019178,2]
[380163319,1755588641208,-460.0,0.00019178,2]
[380163320,1755588641217,-268.0754093,0.00019178,2]
[380163321,1755588641227,-480.0,0.00019178,2]
[380163322,1755588641236,-480.0,0.00019178,2]
[380163323,1755588641245,-480.0,0.00019178,2]
[380163324,1755588641254,-480.0,0.00019178,2]
[380163325,1755588641263,-480.0,0.00019178,2]
[380163326,1755588641272,-480.0,0.00019178,2]
[380163327,1755588641281,-801.93,0.00019178,2]
[380163328,1755588641290,-3079.08,0.00019178,2]
[380163329,1755588641299,-157.63815913,0.00019178,2]
[380163330,1755588641308,-480.0,0.00019178,2]
[380163331,1755588641317,-483.23123391,0.00019178,2]
[380163332,1755588641326,-1198.02,0.00019178,2]
[380163333,1755588641336,-480.48228969,0.00019178,2]
[380163334,1755588641348,-570.55,0.00019178,2]
[380163335,1755588641357,-480.0,0.00019178,2]
[380163336,1755588641366,-480.0,0.00019178,2]
[380163337,1755588641375,-1237.19,0.00019178,2]
[380163338,1755588641384,-480.0,0.00019178,2]
[380163339,1755588641393,-5596.16,0.00019178,2]
[380163340,1755588641403,-480.0,0.00019178,2]
[380163341,1755588641412,-924.39376705,0.00019178,2]
[380163342,1755588641431,-559.74623295,0.00019178,2]
[380163343,1755588641440,-480.0,0.00019178,2]
[380163344,1755588641449,-480.0,0.00019178,2]
[380163345,1755588641457,-480.0,0.00019178,2]
[380163346,1755588641466,-480.0,0.00019178,2]
[380163347,1755588641476,-480.0,0.00019178,2]
[380163348,1755588641485,-480.0,0.00019178,2]
[380163349,1755588641494,-287.65812865,0.00019178,2]
[380163350,1755588641516,-192.34187135,0.00019178,2]
[380163351,1755588641526,-72.30230913,0.00019178,2]
[380163352,1755588641694,-407.69769087,0.00019178,2]
[380163353,1755588641704,-480.0,0.00019178,2]
[380163354,1755588641713,-402.61396908,0.00019178,2]
[380163355,1755588641723,-480.0,0.00019178,2]
[380163356,1755588641732,-480.0,0.00019178,2]
[380163357,1755588641741,-480.0,0.00019178,2]
[380163358,1755588641751,-480.0,0.00019178,2]
[380163359,1755588641760,-480.0,0.00019178,2]
[380163360,1755588641769,-480.0,0.00019178,2]
[380163361,1755588641779,-480.0,0.00019178,2]
[380163362,1755588641788,-480.0,0.00019178,2]
[380163363,1755588641798,-480.0,0.00019178,2]
[380163364,1755588641811,-480.0,0.00019178,2]
[380163365,1755588641822,-480.0,0.00019178,2]
[380163366,1755588641831,-480.0,0.00019178,2]
[380163367,1755588641953,-480.0,0.00019178,2]
[380163368,1755588641963,-480.0,0.00019178,2]
[380163369,1755588641972,-3326.55,0.00019178,2]
[380163370,1755588641982,-480.0,0.00019178,2]
[380163371,1755588641991,-480.0,0.00019178,2]
[380163372,1755588642000,-591.1,0.00019178,2]
[380163373,1755588642010,-765.74,0.00019178,2]
[380163374,1755588642019,-400.0,0.00019178,2]
[380163375,1755588642028,-480.0,0.00019178,2]
[380163376,1755588642038,-1739.34,0.00019178,2]
[380163377,1755588642047,-423.66409387,0.00019178,2]
[380163378,1755588642056,-480.0,0.00019178,2]
[380163379,1755588642065,-480.0,0.00019178,2]
[380163380,1755588642075,-1524.2,0.00019178,2]
[380163381,1755588642084,-480.0,0.00019178,2]
[380163382,1755588642094,-1370.96,0.00019178,2]
[380163383,1755588642104,-480.0,0.00019178,2]
[380163384,1755588642114,-480.0,0.00019178,2]
[380163385,1755588642123,-480.0,0.00019178,2]
[380163386,1755588642132,-480.0,0.00019178,2]
[380163387,1755588642142,-439.93078696,0.00019178,2]
[380163388,1755588642153,-879.96,0.00019178,2]
[380163389,1755588642162,-409.87482227,0.00019178,2]
[380163390,1755588642171,-2107.91,0.00019178,2]
[380163391,1755588642180,-480.0,0.00019178,2]
[380163392,1755588642189,-460.50048047,0.00019178,2]
[380163393,1755588642199,-480.0,0.00019178,2]
[380163394,1755588642208,-593.96,0.00019178,2]
[380163395,1755588642217,-480.0,0.00019178,2]
[380163396,1755588642227,-472.5920764,0.00019178,2]
[380163397,1755588642236,-480.0,0.00019178,2]
[380163398,1755588642245,-480.0,0.00019178,2]
[380163399,1755588642254,-480.0,0.00019178,2]
[380163400,1755588642267,-480.0,0.00019178,2]
[380163401,1755588642277,-480.0,0.00019178,2]
[380163402,1755588642287,-480.0,0.00019178,2]
[380163403,1755588642297,-1987.19,0.00019178,2]
[380163404,1755588642306,-480.0,0.00019178,2]
[380163405,1755588642317,-480.0,0.00019178,2]
[380163406,1755588642326,-480.0,0.00019178,2]
[380163407,1755588642335,-735.85,0.00019178,2]
[380163408,1755588642347,-480.0,0.00019178,2]
[380163409,1755588642356,-460.0,0.00019178,2]
[380163410,1755588642365,-672.51,0.00019178,2]
[380163411,1755588642375,-283.73117302,0.00019178,2]
[380163412,1755588642385,-555.29608448,0.00019178,2]
[380163413,1755588642395,-1016.96,0.00019178,2]
[380163414,1755588642404,-480.0,0.00019178,2]
[380163415,1755588642414,-480.0,0.00019178,2]
[380163416,1755588642423,-480.0,0.00019178,2]
[380163417,1755588642433,-480.0,0.00019178,2]
[380163418,1755588642443,-1390.2,0.00019178,2]
[380163419,1755588642452,-480.0,0.00019178,2]
[380163420,1755588642462,-480.0,0.00019178,2]
[380163421,1755588642471,-480.0,0.00019178,2]
[380163422,1755588642481,-480.0,0.00019178,2]
[380163423,1755588642491,-480.0,0.00019178,2]
[380163424,1755588642501,-480.0,0.00019178,2]
[380163425,1755588642511,-480.0,0.00019178,2]
[380163426,1755588642520,-480.0,0.00019178,2]
[380163427,1755588642530,-1539.06,0.00019178,2]
[380163428,1755588642539,-480.0,0.00019178,2]
[380163429,1755588642549,-480.0,0.00019178,2]
[380163430,1755588642559,-480.0,0.00019178,2]
[380163431,1755588642568,-480.0,0.00019178,2]
[380163432,1755588642578,-480.0,0.00019178,2]
[380163433,1755588642587,-480.0,0.00019178,2]
[380163434,1755588642599,-656.03,0.00019178,2]
[380163435,1755588642609,-480.0,0.00019178,2]
[380163436,1755588642619,-480.0,0.00019178,2]
[380163437,1755588642629,-483.18637198,0.00019178,2]
[380163438,1755588642639,-570.49,0.00019178,2]
[380163439,1755588642649,-480.0,0.00019178,2]
[380163440,1755588642658,-500.0,0.00019178,2]
[380163441,1755588642668,-480.0,0.00019178,2]
[380163442,1755588642678,-480.0,0.00019178,2]
[380163443,1755588642687,-480.0,0.00019178,2]
[380163444,1755588642697,-480.0,0.00019178,2]
[380163445,1755588642707,-480.0,0.00019178,2]
[380163446,1755588642717,-482.93811005,0.00019178,2]
[380163448,1755588642726,-2733.34,0.00019178,2]
[380163450,1755588642735,-5132.06,0.00019178,2]
[380163452,1755588642745,-731.25,0.00019178,2]
[380163454,1755588642755,-480.0,0.00019178,2]
[380163456,1755588642764,-480.0,0.00019178,2]
[380163458,1755588642774,-480.0,0.00019178,2]
[380163460,1755588642783,-480.0,0.00019178,2]
[380163462,1755588642793,-597.07,0.00019178,2]
[380163464,1755588642803,-480.0,0.00019178,2]
[380163465,1755588642815,-462.12345675,0.00019178,2]
[380163467,1755588642824,-480.0,0.00019178,2]
[380163469,1755588642833,-480.0,0.00019178,2]
[380163471,1755588642845,-480.27727365,0.00019178,2]
[380163472,1755588642854,-714.94,0.00019178,2]
[380163473,1755588642864,-480.0,0.00019178,2]
[380163474,1755588642873,-480.0,0.00019178,2]
[380163475,1755588642883,-480.0,0.00019178,2]
[380163476,1755588642893,-480.0,0.00019178,2]
[380163477,1755588642903,-480.0,0.00019178,2]
[380163478,1755588642912,-480.0,0.00019178,2]
[380163479,1755588642922,-480.0,0.00019178,2]
[380163480,1755588642932,-480.0,0.00019178,2]
[380163481,1755588642941,-460.0,0.00019178,2]
[380163483,1755588642951,-480.0,0.00019178,2]
[380163485,1755588642960,-400.0,0.00019178,2]
[380163486,1755588642970,-550.38392764,0.00019178,2]
[380163487,1755588642979,-480.0,0.00019178,2]
[380163488,1755588642988,-246.11498051,0.00019178,2]
[380163489,1755588642998,-480.0,0.00019178,2]
[380163490,1755588643008,-480.0,0.00019178,2]
[380163491,1755588643017,-480.0,0.00019178,2]
[380163492,1755588643027,-480.0,0.00019178,2]
[380163493,1755588643036,-480.0,0.00019178,2]
[380163494,1755588643046,-1879.91,0.00019178,2]
[380163495,1755588643055,-480.0,0.00019178,2]
[380163496,1755588643065,-480.0,0.00019178,2]
[380163497,1755588643074,-480.0,0.00019178,2]
[380163499,1755588643083,-500.0,0.00019178,2]
[380163501,1755588643092,-5000.0,0.00019178,2]
[380163502,1755588643102,-5000.0,0.00019178,2]
[380163503,1755588643111,-4982.29712879,0.00019178,2]
[380163504,1755588643121,-666.0,0.00019178,2]
[380163505,1755588643130,-9604.8864852,0.00019178,2]
[380163506,1755588643139,-3000.0,0.000192,2]
[380163508,1755588643148,-6012.70947214,0.0001922,2]
[380163509,1755588643157,-168.0,0.00019236,2]
[380163510,1755588643167,-168.0,0.00019277,2]
[380163511,1755588643177,-1000.0,0.00019314,5]
[380163512,1755588643186,-500.0,0.00019328,2]
[380163513,1755588643195,-500.0,0.00019329,2]
[380163514,1755588643204,-500.0,0.00019329,2]
[380163515,1755588643214,-160.0,0.00019331,3]
[380163516,1755588643223,-1019.44659554,0.00019352,2]
[380163517,1755588643232,-1000.0,0.00019352,2]
[380163518,1755588643241,-168.0,0.00019367,2]
[380163519,1755588643251,-179.71246006,0.00019396,2]
[380163520,1755588643260,-500.0,0.00019398,2]
[380163521,1755588643268,-431.9034523,0.000194,2]
[380163522,1755588643278,-537.8230547,0.000194,2]
[380163523,1755588643287,-1306.0027209,0.000194,2]
[380163524,1755588643297,-587.7886402,0.000194,2]
[380163525,1755588643306,-8231.68718826,0.00019428,2]
[380163526,1755588643315,-168.0,0.00019428,2]
[380163527,1755588643324,-500.0,0.00019451,2]
[380163528,1755588643334,-500.0,0.00019451,2]
[380163529,1755588643344,-638.03,0.00019451,2]
[380163530,1755588643354,-853.2098414,0.00019452,2]
[380163531,1755588643363,-480.0,0.00019452,2]
[380163532,1755588643372,-362.91670651,0.00019452,2]
[380163533,1755588643382,-480.0,0.00019452,2]
[380163534,1755588643391,-480.0,0.00019452,2]
[380163535,1755588643400,-220.46693196,0.00019452,2]
[380163536,1755588643410,-480.0,0.00019452,2]
[380163537,1755588643419,-480.0,0.00019452,2]
[380163538,1755588643431,-480.0,0.00019452,2]
[380163539,1755588643440,-387.63067414,0.00019452,2]
[380163540,1755588643450,-480.0,0.00019452,2]
[380163541,1755588643459,-480.0,0.00019452,2]
[380163542,1755588643468,-573.49,0.00019452,2]
[380163543,1755588643478,-480.0,0.00019452,2]
[380163544,1755588643487,-480.0,0.00019452,2]
[380163545,1755588643498,-420.0,0.00019452,2]
[380163546,1755588643507,-480.0,0.00019452,2]
[380163547,1755588643517,-480.0,0.00019452,2]
[380163548,1755588643526,-480.0,0.00019452,2]
[380163549,1755588643536,-480.0,0.00019452,2]
[380163550,1755588643545,-480.0,0.00019452,2]
[380163551,1755588643554,-480.0,0.00019452,2]
[380163552,1755588643644,-480.0,0.00019452,2]
[380163553,1755588643654,-422.90799601,0.00019452,2]
[380163554,1755588643664,-480.0,0.00019452,2]
[380163555,1755588643673,-480.0,0.00019452,2]
[380163556,1755588643683,-480.0,0.00019452,2]
[380163557,1755588643694,-480.0,0.00019452,2]
[380163558,1755588643703,-403.18635256,0.00019452,2]
[380163559,1755588643713,-480.0,0.00019452,2]
[380163560,1755588643722,-461.72127576,0.00019452,2]
[380163561,1755588643731,-480.0,0.00019452,2]
[380163562,1755588643740,-480.0,0.00019452,2]
[380163564,1755588643750,-480.0,0.00019452,2]
[380163566,1755588643759,-460.97684025,0.00019452,2]
[380163568,1755588643769,-480.0,0.00019452,2]
[380163570,1755588643778,-480.0,0.00019452,2]
[380163571,1755588643787,-480.0,0.00019452,2]
[380163572,1755588643797,-480.0,0.00019452,2]
[380163573,1755588643809,-480.0,0.00019452,2]
[380163574,1755588643818,-481.14369091,0.00019452,2]
[380163575,1755588643828,-480.0,0.00019452,2]
[380163576,1755588643837,-480.0,0.00019452,2]
[380163577,1755588643847,-480.0,0.00019452,2]
[380163578,1755588643856,-480.0,0.00019452,2]
[380163579,1755588643865,-416.00757877,0.00019452,2]
[380163580,1755588643875,-480.0,0.00019452,2]
[380163581,1755588643885,-226.3315268,0.00019452,2]
[380163582,1755588643895,-480.0,0.00019452,2]
[380163583,1755588643904,-838.78,0.00019452,2]
[380163584,1755588643913,-446.33812446,0.00019452,2]
[380163585,1755588643923,-285.51574413,0.00019452,2]
[380163586,1755588643933,-480.0,0.00019452,2]
[380163587,1755588643942,-480.0,0.00019452,2]
[380163588,1755588643952,-443.2545883,0.00019452,2]
[380163589,1755588643961,-480.0,0.00019452,2]
[380163590,1755588643971,-480.0,0.00019452,2]
[380163591,1755588643980,-418.99403924,0.00019452,2]
[380163592,1755588643989,-480.0,0.00019452,2]
[380163593,1755588643999,-480.0,0.00019452,2]
[380163594,1755588644009,-480.0,0.00019452,2]
[380163595,1755588644018,-480.0,0.00019452,2]
[380163596,1755588644028,-480.0,0.00019452,2]
[380163597,1755588644037,-682.73,0.00019452,2]
[380163598,1755588644046,-480.0,0.00019452,2]
[380163599,1755588644055,-480.0,0.00019452,2]
[380163600,1755588644065,-480.0,0.00019452,2]
[380163601,1755588644074,-480.0,0.00019452,2]
[380163602,1755588644084,-480.0,0.00019452,2]
[380163603,1755588644094,-1334.51507559,0.00019452,2]
[380163604,1755588644252,-114.08492441,0.00019452,2]
[380163605,1755588644262,-151.0,0.00019452,2]
[380163606,1755588644271,-151.0,0.00019452,2]
[380163607,1755588644281,-525.71745877,0.00019452,2]
[380163608,1755588644290,-480.0,0.00019452,2]
[380163609,1755588644300,-151.0,0.00019452,2]
[380163610,1755588644309,-448.05589175,0.00019452,2]
[380163611,1755588644319,-481.48274677,0.00019452,2]
[380163612,1755588644328,-480.0,0.00019452,2]
[380163613,1755588644338,-853.77,0.00019452,2]
[380163614,1755588644350,-440.0,0.00019452,2]
[380163615,1755588644360,-480.0,0.00019452,2]
[380163616,1755588644370,-480.0,0.00019452,2]
[380163617,1755588644380,-210.3204789,0.00019452,2]
[380163618,1755588644389,-689.33,0.00019452,2]
[380163619,1755588644399,-480.0,0.00019452,2]
[380163620,1755588644409,-480.0,0.00019452,2]
[380163621,1755588644419,-151.692893,0.00019452,2]
[380163622,1755588644429,-340.0,0.00019452,2]
[380163623,1755588644439,-417.14854858,0.00019452,2]
[380163624,1755588644448,-480.0,0.00019452,2]
[380163625,1755588644458,-480.0,0.00019452,2]
[380163626,1755588644469,-1093.99,0.00019452,2]
[380163627,1755588644478,-151.0,0.00019452,2]
[380163628,1755588644488,-480.0,0.00019452,2]
[380163629,1755588644498,-151.0,0.00019452,2]
[380163630,1755588644508,-151.0,0.00019452,2]
[380163631,1755588644517,-480.0,0.00019452,2]
[380163632,1755588644527,-21.40705782,0.00019452,2]
[380163633,1755588644547,-454.32124218,0.00019452,2]
[380163634,1755588644557,-603.59,0.00019452,2]
[380163635,1755588644566,-619.52,0.00019452,2]
[380163636,1755588644576,-475.7283,0.00019452,2]
[380163637,1755588644586,-480.0,0.00019452,2]
[380163638,1755588644595,-480.0,0.00019452,2]
[380163639,1755588644605,-151.0,0.00019452,2]
[380163640,1755588644615,-420.0,0.00019452,2]
[380163641,1755588644624,-482.07381709,0.00019452,2]
[380163642,1755588644634,-151.0,0.00019452,2]
[380163643,1755588644644,-480.0,0.00019452,2]
[380163644,1755588644653,-480.0,0.00019452,2]
[380163645,1755588644664,-480.0,0.00019452,2]
[380163646,1755588644673,-151.751207,0.00019452,2]
[380163647,1755588644682,-480.0,0.00019452,2]
[380163648,1755588644692,-480.0,0.00019452,2]
[380163649,1755588644705,-525.94568075,0.00019452,2]
[380163650,1755588644715,-480.0,0.00019452,2]
[380163651,1755588644725,-446.007916,0.00019452,2]
[380163652,1755588644735,-151.0,0.00019452,2]
[380163653,1755588644745,-457.167768,0.00019452,2]
[380163654,1755588644758,-480.0,0.00019452,2]
[380163655,1755588644768,-480.0,0.00019452,2]
[380163656,1755588644778,-457.167768,0.00019452,2]
[380163657,1755588644788,-510.55,0.00019452,2]
[380163658,1755588644798,-151.0,0.00019452,2]
[380163659,1755588644811,-151.0,0.00019452,2]
[380163660,1755588644821,-151.0,0.00019452,2]
[380163661,1755588644831,-480.0,0.00019452,2]
[380163662,1755588644840,-480.0,0.00019452,2]
[380163663,1755588644851,-480.0,0.00019452,2]
[380163664,1755588644861,-480.0,0.00019452,2]
[380163665,1755588644870,-480.0,0.00019452,2]
[380163666,1755588644879,-297.249634,0.00019452,2]
[380163667,1755588644889,-480.0,0.00019452,2]
[380163668,1755588644898,-297.249634,0.00019452,2]
[380163669,1755588644907,-480.0,0.00019452,2]
[380163670,1755588644916,-461.74177837,0.00019452,2]
[380163671,1755588644926,-1616.59,0.00019452,2]